bitfinex/quotes_BTCUSD_20230120
["timestamp","ask_amount","ask_price","bid_price","bid_amount"]
[1674249468559,0.14530117,22282.0,22274.0,0.598945]
[1674249468815,0.0085,22281.0,22274.0,0.598945]
[1674249469073,0.19352243,22281.0,22274.0,0.598945]
[1674249469331,0.01130117,22282.0,22275.0,0.3]
[1674249469583,0.1963236,22282.0,22277.0,0.897782]
[1674249469846,0.01130117,22282.0,22277.0,0.897782]
[1674249470092,0.01130117,22282.0,22278.0,0.45]
[1674249470421,0.01130117,22282.0,22269.0,0.15]
[1674249470422,0.78777315,22279.0,22269.0,0.15]
[1674249470620,0.659898,22274.0,22259.0,0.00934885]
[1674249470894,0.1324,22270.0,22259.0,0.45858785]
[1674249471185,0.313351,22269.0,22259.0,0.45858785]
[1674249471438,0.18502243,22268.0,22262.0,0.1332]
[1674249471701,0.18502243,22267.0,22262.0,0.449176]
[1674249471966,0.18521243,22266.0,22261.0,0.449215]
[1674249472222,0.18502243,22265.0,22261.0,0.449215]
[1674249472481,0.18502243,22265.0,22263.0,0.15]
[1674249472755,0.0085,22264.0,22263.0,0.15]
[1674249473324,0.15,22268.0,22266.0,4.018e-05]
[1674249473578,0.36002227,22270.0,22266.0,4.018e-05]
[1674249473831,0.315676,22269.0,22266.0,4.018e-05]
[1674249474104,0.317768,22268.0,22266.0,4.018e-05]
[1674249474356,0.311322,22267.0,22266.0,0.05152018]
[1674249474626,0.05,22267.0,22266.0,0.05152018]
[1674249474892,0.15,22271.0,22266.0,0.95510833]
[1674249475151,0.21094,22274.0,22267.0,0.45447315]
[1674249475428,0.21094,22274.0,22269.0,0.898104]
[1674249475866,0.21094,22274.0,22270.0,0.4333]
[1674249476123,0.15,22281.0,22271.0,0.44901]
[1674249476397,0.27299525,22281.0,22272.0,0.3]
[1674249476652,0.27299525,22281.0,22271.0,0.44901]
[1674249476653,0.18502243,22280.0,22271.0,0.44901]
[1674249477024,0.51285043,22279.0,22271.0,0.44901]
[1674249477239,0.51285043,22279.0,22273.0,0.15]
[1674249477240,0.49443043,22278.0,22273.0,0.15]
[1674249477493,0.95817843,22277.0,22273.0,0.15]
[1674249477752,0.315726,22276.0,22269.0,0.15]
[1674249478013,0.50888143,22275.0,22267.0,0.449085]
[1674249478268,0.51566343,22274.0,22266.0,0.50061718]
[1674249478539,0.50204543,22273.0,22266.0,0.50061718]
[1674249478797,0.607454,22274.0,22266.0,0.50061718]
[1674249478798,0.49750143,22272.0,22266.0,0.50061718]
[1674249479057,0.18502243,22271.0,22266.0,0.50061718]
[1674249479311,0.18502243,22270.0,22267.0,0.15]
[1674249479562,0.18502243,22270.0,22267.0,0.449076]
[1674249480098,0.0089415,22272.0,22267.0,0.449076]
[1674249480380,0.0085,22269.0,22266.0,4.018e-05]
[1674249480632,0.319528,22268.0,22266.0,4.018e-05]
[1674249480991,0.18502243,22268.0,22266.0,4.018e-05]
[1674249481271,0.15,22274.0,22266.0,0.50062718]
[1674249481533,0.33502243,22274.0,22266.0,0.50062718]
[1674249481786,0.51819843,22273.0,22266.0,0.50062718]
[1674249482058,0.64223743,22272.0,22266.0,0.50062718]
[1674249482365,0.0085,22271.0,22268.0,0.15]
[1674249482670,0.15,22276.0,22269.0,0.449054]
[1674249482671,0.0085,22273.0,22269.0,0.449054]
[1674249483183,0.0085,22275.0,22269.0,0.449054]
[1674249483432,0.19352243,22275.0,22269.0,0.449054]
[1674249483945,1.3025,22278.0,22270.0,0.3]
[1674249484198,0.00044258,22274.0,22272.0,0.448986]
[1674249484468,0.00044258,22274.0,22273.0,0.15]
[1674249485274,0.598844,22280.0,22272.0,0.598986]
[1674249485534,0.0035,22279.0,22272.0,0.598986]
[1674249485793,0.324624,22278.0,22272.0,0.598986]
[1674249486089,0.18502243,22278.0,22273.0,0.15]
[1674249486335,0.18502243,22277.0,22272.0,0.448986]
[1674249486591,0.18502243,22277.0,22271.0,0.449003]
[1674249486592,0.51424443,22276.0,22270.0,0.449024]
[1674249486876,0.49992843,22275.0,22270.0,0.449024]
[1674249487129,0.53935623,22278.0,22267.0,0.449086]
[1674249487130,0.49219443,22274.0,22267.0,0.449086]
[1674249487389,0.64747743,22273.0,22267.0,0.449086]
[1674249487646,0.51327543,22272.0,22267.0,0.449086]
[1674249487905,0.49691143,22271.0,22267.0,0.449086]
[1674249488161,0.32508,22270.0,22267.0,0.449086]
[1674249488419,0.49573843,22269.0,22266.0,4.018e-05]
[1674249488696,0.53346243,22268.0,22266.0,4.018e-05]
[1674249488950,0.321118,22267.0,22264.0,0.0078189]
[1674249489203,0.0085,22266.0,22264.0,0.0078189]
[1674249489710,0.0085,22268.0,22264.0,0.0078189]
[1674249490018,0.18502243,22267.0,22264.0,0.0078189]
[1674249490246,0.334858,22266.0,22264.0,0.0078189]
[1674249490510,0.317227,22265.0,22264.0,0.0078189]
[1674249490765,0.51074943,22265.0,22264.0,0.0078189]
[1674249491015,0.325727,22265.0,22264.0,0.0078189]
[1674249491237,0.774862,22265.0,22264.0,0.0078189]
[1674249492865,0.325727,22265.0,22264.0,0.0078189]
[1674249494133,0.317227,22265.0,22264.0,0.0078189]
[1674249495700,0.325727,22265.0,22264.0,0.0078189]
[1674249495950,0.475727,22265.0,22264.0,0.0078189]
[1674249496717,0.15,22264.0,22259.0,0.00934885]
[1674249496977,0.94846858,22263.0,22257.0,0.0047341]
[1674249497235,1.99484158,22262.0,22257.0,0.0047341]
[1674249497486,0.95863758,22261.0,22257.0,0.0047341]
[1674249497744,0.50456743,22260.0,22257.0,0.0047341]
[1674249497995,0.457728,22261.0,22257.0,0.0047341]
[1674249497996,0.324312,22259.0,22257.0,0.0047341]
[1674249498260,0.297956,22258.0,22257.0,0.0047341]
[1674249498511,0.306456,22258.0,22257.0,0.0047341]
[1674249498770,0.05963,22258.0,22257.0,0.0047341]
[1674249499072,0.375859,22258.0,22257.0,0.0047341]
[1674249499542,0.375859,22258.0,22255.0,0.00883466]
[1674249499543,1.01571805,22258.0,22255.0,0.00883466]
[1674249499811,0.320588,22257.0,22255.0,0.00883466]
[1674249500094,0.05963,22256.0,22255.0,0.00883466]
[1674249500369,0.364932,22256.0,22255.0,0.00883466]
[1674249501667,0.81940515,22256.0,22255.0,0.00883466]
[1674249501909,0.313802,22256.0,22255.0,0.06031466]
[1674249502166,0.313802,22256.0,22255.0,0.00883466]
[1674249503207,0.313802,22256.0,22255.0,3.466e-05]
[1674249504261,1.3129,22262.0,22255.0,0.05151466]
[1674249504519,1.3129,22262.0,22255.0,0.50083566]
[1674249504753,1.49792243,22262.0,22255.0,0.50083566]
[1674249505260,0.317973,22261.0,22255.0,0.50083566]
[1674249505518,0.18502243,22261.0,22255.0,0.50083566]
[1674249505819,0.864774,22265.0,22255.0,0.50083566]
[1674249505820,1.1003,22266.0,22256.0,0.3]
[1674249506057,1.28532243,22266.0,22259.0,0.449256]
[1674249506322,1.1003,22266.0,22259.0,0.449256]
[1674249506587,0.33502243,22265.0,22259.0,0.449256]
[1674249506903,1.42084558,22264.0,22256.0,0.449307]
[1674249507100,0.66138743,22263.0,22256.0,0.449307]
[1674249507355,0.582518,22261.0,22255.0,3.466e-05]
[1674249507617,0.51254943,22260.0,22255.0,3.466e-05]
[1674249507878,0.50732643,22259.0,22255.0,3.466e-05]
[1674249508170,0.0085,22260.0,22255.0,3.466e-05]
[1674249508171,0.66704643,22258.0,22255.0,3.466e-05]
[1674249508452,0.302553,22257.0,22255.0,3.466e-05]
[1674249508687,0.0085,22257.0,22255.0,3.466e-05]
[1674249511818,0.323156,22256.0,22255.0,3.466e-05]
[1674249512114,0.0085,22256.0,22255.0,3.466e-05]
[1674249512354,0.05963,22256.0,22255.0,3.466e-05]
[1674249513098,0.15,22255.0,22252.0,0.22655711]
[1674249513362,0.50786043,22254.0,22249.0,0.449443]
[1674249513629,0.48020843,22253.0,22249.0,0.449443]
[1674249513889,0.48653143,22252.0,22249.0,0.449443]
[1674249514144,0.18502243,22252.0,22249.0,0.449443]
[1674249514404,0.18502243,22252.0,22248.0,0.449474]
[1674249514725,0.0085,22251.0,22247.0,0.449489]
[1674249514978,0.19352243,22251.0,22247.0,0.24590593]
[1674249515236,0.1333,22257.0,22247.0,0.24590593]
[1674249515502,0.0085,22256.0,22247.0,0.24590593]
[1674249515762,0.34352243,22256.0,22248.0,0.15]
[1674249516074,0.18502243,22256.0,22250.0,0.898861]
[1674249516378,0.14128,22259.0,22251.0,0.3]
[1674249516634,0.14128,22259.0,22253.0,1.348113]
[1674249516635,0.18502243,22259.0,22253.0,1.348113]
[1674249516895,0.1423,22262.0,22254.0,0.15]
[1674249517165,0.32732243,22262.0,22256.0,0.898618]
[1674249517441,0.1423,22262.0,22256.0,0.898618]
[1674249517701,0.15,22263.0,22256.0,0.898618]
[1674249518221,0.18502243,22263.0,22256.0,0.898618]
[1674249518473,0.18502243,22262.0,22256.0,0.898618]
[1674249518731,0.15,22265.0,22256.0,0.898618]
[1674249518732,0.18502243,22261.0,22258.0,0.15]
[1674249518996,0.33502243,22265.0,22260.0,0.883468]
[1674249519250,0.15,22265.0,22260.0,0.883468]
[1674249519757,0.15,22268.0,22260.0,0.883468]
[1674249520025,0.33502243,22268.0,22261.0,0.3]
[1674249520309,0.33502243,22268.0,22263.0,0.898346]
[1674249520548,0.15,22268.0,22263.0,0.898346]
[1674249520807,0.15,22269.0,22263.0,0.449173]
[1674249521067,0.316174,22268.0,22263.0,0.449173]
[1674249521334,0.310504,22267.0,22263.0,0.449173]
[1674249521622,0.316367,22266.0,22261.0,0.599211]
[1674249521886,0.49645043,22265.0,22261.0,0.449211]
[1674249522134,0.315143,22264.0,22261.0,0.434211]
[1674249522589,0.19352243,22264.0,22261.0,0.434211]
[1674249522624,0.0085,22264.0,22261.0,0.434211]
[1674249523416,0.0085,22265.0,22261.0,0.434211]
[1674249524538,0.324554,22264.0,22261.0,0.434211]
[1674249524822,0.0085,22263.0,22261.0,0.434211]
[1674249525342,0.0085,22265.0,22261.0,0.434211]
[1674249526142,0.18502243,22264.0,22257.0,0.449295]
[1674249526401,0.47882315,22265.0,22257.0,0.449295]
[1674249526402,0.47922043,22263.0,22257.0,0.449295]
[1674249526663,0.49766843,22262.0,22256.0,0.449314]
[1674249526951,0.65232043,22261.0,22254.0,0.449342]
[1674249527220,0.52141143,22260.0,22254.0,0.449342]
[1674249527478,0.48238043,22259.0,22254.0,0.449342]
[1674249527783,0.19352243,22258.0,22254.0,0.449342]
[1674249528035,0.19352243,22258.0,22253.0,0.449357]
[1674249528584,0.18502243,22258.0,22253.0,0.23549882]
[1674249528869,0.599116,22266.0,22254.0,0.15]
[1674249529161,0.14505,22264.0,22257.0,0.898577]
[1674249529424,0.33007243,22264.0,22257.0,0.898577]
[1674249529946,0.33007243,22264.0,22258.0,0.15]
[1674249530197,0.330555,22263.0,22258.0,0.15]
[1674249530455,0.330555,22263.0,22255.0,0.449332]
[1674249530456,0.300038,22262.0,22255.0,0.449332]
[1674249530717,1.42633658,22261.0,22254.0,0.449337]
[1674249530977,0.65694343,22260.0,22254.0,0.449337]
[1674249531241,0.51419343,22259.0,22254.0,0.449337]
[1674249531522,0.18502243,22258.0,22254.0,0.449337]
[1674249531752,0.0085,22257.0,22254.0,0.449337]
[1674249532007,0.29679,22262.0,22254.0,0.449337]
[1674249532008,0.1333,22263.0,22255.0,0.15]
[1674249532267,0.0085,22262.0,22256.0,0.449309]
[1674249532518,0.0085,22262.0,22257.0,0.15]
[1674249533798,0.45301,22261.0,22255.0,0.449326]
[1674249534062,0.51502443,22260.0,22255.0,0.449326]
[1674249534335,0.49011643,22259.0,22255.0,0.449326]
[1674249534587,0.311269,22258.0,22255.0,0.449326]
[1674249534839,0.19352243,22258.0,22253.0,0.449368]
[1674249535105,0.18502243,22257.0,22252.0,0.449387]
[1674249535423,0.52371343,22256.0,22252.0,0.449381]
[1674249535630,0.51661443,22255.0,22252.0,0.449381]
[1674249535903,0.18502243,22255.0,22252.0,0.449381]
[1674249536145,0.0085,22254.0,22252.0,0.449381]
[1674249536685,0.0085,22256.0,22252.0,0.449381]
[1674249536944,0.0085,22257.0,22252.0,0.449381]
[1674249537453,0.0085,22257.0,22253.0,0.15]
[1674249537965,0.0085,22257.0,22253.0,0.599371]
[1674249538527,0.0085,22257.0,22254.0,0.3]
[1674249538778,0.1528,22264.0,22255.0,0.898674]
[1674249539044,0.18683657,22264.0,22255.0,0.898674]
[1674249539336,0.371859,22264.0,22255.0,0.898674]
[1674249539597,0.18502243,22263.0,22255.0,0.814174]
[1674249539877,0.18502243,22262.0,22256.0,0.3]
[1674249540146,0.18502243,22262.0,22258.0,0.898524]
[1674249540418,0.15,22266.0,22258.0,0.898524]
[1674249540419,0.15223,22265.0,22258.0,0.898524]
[1674249540681,0.33725243,22265.0,22258.0,0.898524]
[1674249541719,1.0946,22266.0,22259.0,0.15]
[1674249541720,0.19352243,22264.0,22259.0,0.15]
[1674249542007,0.0085,22264.0,22260.0,0.449226]
[1674249542269,0.0085,22266.0,22260.0,0.449226]
[1674249542531,0.19352243,22266.0,22260.0,0.449226]
[1674249543104,0.21390266,22266.0,22260.0,0.449226]
[1674249543399,0.335483,22265.0,22261.0,0.15]
[1674249543648,0.335483,22265.0,22259.0,0.50295537]
[1674249543649,0.325347,22264.0,22259.0,0.50295537]
[1674249543906,0.19352243,22264.0,22259.0,0.449242]
[1674249544718,0.18502243,22263.0,22260.0,0.15]
[1674249544989,0.0085,22262.0,22260.0,0.15]
[1674249545250,0.0085,22264.0,22258.0,0.449262]
[1674249545506,0.63949558,22263.0,22256.0,0.599311]
[1674249545820,1.26988858,22262.0,22256.0,0.15]
[1674249546039,1.26988858,22262.0,22257.0,0.15]
[1674249546040,1.85151058,22261.0,22257.0,0.15]
[1674249546292,0.31287,22260.0,22253.0,0.602105]
[1674249546559,0.50280343,22259.0,22254.0,0.15]
[1674249546825,1.11940558,22258.0,22251.0,0.449415]
[1674249547098,0.49192843,22257.0,22251.0,0.449415]
[1674249547336,0.49292743,22256.0,22251.0,0.449415]
[1674249547639,0.61297315,22258.0,22252.0,0.15]
[1674249547640,0.18502243,22255.0,22252.0,0.15]
[1674249547855,0.18502243,22255.0,22251.0,0.449415]
[1674249548104,0.0085,22254.0,22251.0,0.449415]
[1674249548869,0.18502243,22254.0,22250.0,0.449928]
[1674249549140,0.0085,22253.0,22250.0,0.449928]
[1674249549656,0.0085,22253.0,22250.0,0.0005]
[1674249549926,0.0085,22253.0,22250.0,0.1505]
[1674249550178,0.0085,22253.0,22250.0,0.0005]
[1674249550433,0.0085,22253.0,22250.0,0.1505]
[1674249550701,0.0085,22253.0,22250.0,0.599922]
[1674249551253,0.15,22258.0,22250.0,0.599922]
[1674249551541,0.0085,22257.0,22250.0,0.599922]
[1674249551804,0.19352243,22257.0,22250.0,0.599922]
[1674249552544,0.19352243,22257.0,22251.0,0.3]
[1674249552545,0.18502243,22256.0,22252.0,0.15]
[1674249552809,0.0085,22255.0,22252.0,1.04877]
[1674249553070,0.30337,22260.0,22252.0,1.04877]
[1674249553332,0.18502243,22260.0,22252.0,1.04877]
[1674249553857,0.18502243,22259.0,22253.0,0.3]
[1674249554120,0.18502243,22259.0,22254.0,0.898682]
[1674249554367,1.1302,22262.0,22254.0,0.898682]
[1674249554642,0.18502243,22262.0,22255.0,0.15]
[1674249554953,0.18502243,22262.0,22257.0,0.449296]
[1674249555218,0.04674224,22262.0,22257.0,0.449296]
[1674249555499,0.15,22264.0,22257.0,0.23889808]
[1674249555755,0.46297315,22263.0,22257.0,0.23889808]
[1674249556024,0.324306,22262.0,22256.0,0.449316]
[1674249556284,0.51234943,22261.0,22256.0,0.449316]
[1674249556549,0.321258,22260.0,22256.0,0.449316]
[1674249556808,0.0085,22259.0,22258.0,0.07742]
[1674249557314,0.05963,22259.0,22258.0,0.07742]
[1674249557565,0.0085,22259.0,22258.0,0.07742]
[1674249557824,1.568736,22265.0,22258.0,0.07742]
[1674249558095,0.0085,22264.0,22258.0,0.07242]
[1674249558337,0.19352243,22264.0,22258.0,0.07242]
[1674249558591,0.322881,22263.0,22258.0,0.07242]
[1674249558901,0.313131,22262.0,22257.0,0.28055273]
[1674249559109,0.31337,22261.0,22258.0,0.15]
[1674249559387,0.0085,22260.0,22257.0,0.28055273]
[1674249559655,0.19352243,22262.0,22257.0,0.28055273]
[1674249559922,0.0085,22262.0,22257.0,0.28055273]
[1674249560185,0.0085,22264.0,22257.0,0.28055273]
[1674249560448,0.18502243,22264.0,22258.0,0.15]
[1674249560709,0.0085,22263.0,22258.0,0.599257]
[1674249560967,0.18502243,22264.0,22259.0,0.3]
[1674249561234,0.01027983,22267.0,22260.0,0.898455]
[1674249561733,0.19530226,22267.0,22260.0,0.898455]
[1674249561991,0.31785,22266.0,22261.0,0.15]
[1674249562251,0.76105515,22265.0,22261.0,0.15]
[1674249562531,0.316717,22264.0,22261.0,0.15]
[1674249562813,0.87537241,22263.0,22256.0,0.449316]
[1674249563059,0.50387243,22262.0,22259.0,0.15]
[1674249563359,0.30683,22261.0,22259.0,0.15]
[1674249563623,0.78717915,22260.0,22255.0,0.15]
[1674249563884,0.50504843,22259.0,22253.0,0.449375]
[1674249564191,0.52972143,22258.0,22253.0,0.449375]
[1674249564444,0.50476443,22257.0,22253.0,0.449375]
[1674249564722,0.324158,22256.0,22253.0,0.449375]
[1674249564979,0.309456,22255.0,22253.0,0.449375]
[1674249565247,0.31051,22254.0,22253.0,0.449375]
[1674249565503,0.21326508,22256.0,22254.0,0.15]
[1674249565763,0.304804,22255.0,22254.0,0.15]
[1674249566019,0.313304,22255.0,22252.0,0.449396]
[1674249566271,0.0085,22254.0,22252.0,0.449396]
[1674249566521,0.00889041,22256.0,22253.0,0.15]
[1674249566802,0.00039041,22256.0,22254.0,0.898714]
[1674249567325,0.0085,22258.0,22254.0,0.449357]
[1674249567559,0.0085,22258.0,22252.0,0.449396]
[1674249567560,0.313419,22257.0,22252.0,0.449396]
[1674249567814,0.0085,22256.0,22252.0,0.449396]
[1674249568111,0.50548343,22256.0,22252.0,0.449396]
[1674249568332,0.323313,22255.0,22252.0,0.449396]
[1674249568605,0.330936,22254.0,22252.0,0.449396]
[1674249568855,0.0085,22254.0,22250.0,0.449928]
[1674249569133,0.310782,22253.0,22250.0,0.449928]
[1674249569462,0.329052,22252.0,22250.0,0.449928]
[1674249569642,0.310401,22251.0,22250.0,0.449928]
[1674249569895,0.0085,22252.0,22250.0,0.449928]
[1674249570166,0.51695043,22251.0,22250.0,0.0005]
[1674249570439,0.331928,22251.0,22250.0,0.0005]
[1674249570714,0.340428,22251.0,22250.0,0.0005]
[1674249570960,0.340428,22251.0,22247.0,0.429992]
[1674249571255,0.316672,22250.0,22247.0,0.429992]
[1674249571494,1.2384,22256.0,22248.0,0.15]
[1674249571761,1.2384,22256.0,22250.0,0.449436]
[1674249571762,0.0085,22255.0,22250.0,0.449436]
[1674249572291,0.00038973,22255.0,22251.0,0.15]
[1674249572550,0.00038973,22255.0,22252.0,0.911379]
[1674249572824,0.00038973,22255.0,22252.0,0.898786]
[1674249573357,0.1126,22259.0,22252.0,0.898786]
[1674249573875,1.2392,22261.0,22252.0,0.898786]
[1674249574131,1.42422243,22261.0,22253.0,0.3]
[1674249574385,0.0085,22260.0,22255.0,0.449329]
[1674249575169,0.18502243,22260.0,22255.0,0.449329]
[1674249575442,0.64996667,22259.0,22252.0,0.44939]
[1674249575697,0.50134643,22258.0,22252.0,0.44939]
[1674249575958,0.52575043,22257.0,22252.0,0.44939]
[1674249576201,0.50124643,22256.0,22252.0,0.44939]
[1674249576459,0.300992,22255.0,22252.0,0.44939]
[1674249576715,0.19352243,22255.0,22252.0,0.44939]
[1674249576979,0.19352243,22255.0,22250.0,0.449437]
[1674249577236,0.49458643,22254.0,22250.0,0.449437]
[1674249577490,0.318565,22253.0,22250.0,0.449437]
[1674249577757,0.0085,22252.0,22250.0,0.449437]
[1674249578268,0.0085,22254.0,22251.0,0.15]
[1674249578550,0.0085,22255.0,22250.0,0.449437]
[1674249578780,0.19352243,22255.0,22250.0,0.449437]
[1674249579070,1.51680458,22254.0,22246.0,0.00957457]
[1674249579302,1.27816028,22253.0,22246.0,0.15957457]
[1674249579559,0.96358858,22252.0,22246.0,0.15957457]
[1674249579850,0.49243843,22251.0,22246.0,0.15957457]
[1674249580075,0.0085,22252.0,22246.0,0.00957457]
[1674249580076,0.51919243,22250.0,22246.0,0.00957457]
[1674249580349,0.19352243,22249.0,22246.0,0.00957457]
[1674249580606,0.315013,22248.0,22246.0,0.00957457]
[1674249580868,0.313859,22247.0,22246.0,0.00957457]
[1674249581167,0.312971,22247.0,22246.0,0.00957457]
[1674249581386,0.05963,22247.0,22246.0,0.00901024]
[1674249582143,0.368236,22247.0,22246.0,0.00901024]
[1674249582399,0.05963,22247.0,22246.0,0.00901024]
[1674249583183,0.378568,22247.0,22246.0,0.00901024]
[1674249584763,0.0085,22247.0,22243.0,0.449571]
[1674249585094,0.27776,22250.0,22244.0,0.15]
[1674249585286,0.34998243,22250.0,22244.0,0.15]
[1674249585807,0.57372337,22250.0,22244.0,0.449553]
[1674249586074,0.40876337,22250.0,22244.0,0.449553]
[1674249586356,0.18502243,22250.0,22244.0,0.449553]
[1674249586872,1.438,22252.0,22244.0,0.449553]
[1674249587101,2.07749558,22252.0,22245.0,0.15]
[1674249587353,0.308439,22251.0,22245.0,0.15]
[1674249587613,0.1131,22254.0,22245.0,0.599533]
[1674249587877,0.18502243,22254.0,22246.0,0.124708]
[1674249588132,0.562427,22256.0,22246.0,0.124708]
[1674249588133,0.1131,22256.0,22249.0,0.449458]
[1674249588389,0.1131,22256.0,22250.0,0.15]
[1674249588643,0.1131,22256.0,22250.0,0.449432]
[1674249588900,0.316741,22255.0,22250.0,0.449432]
[1674249589404,0.2631,22256.0,22250.0,0.449432]
[1674249589677,0.1131,22256.0,22250.0,0.449432]
[1674249589939,0.1131,22259.0,22250.0,0.449432]
[1674249590260,0.18502243,22259.0,22251.0,0.575693]
[1674249590458,0.18502243,22259.0,22252.0,0.012587]
[1674249590739,0.18502243,22259.0,22253.0,0.898741]
[1674249591014,0.00985049,22260.0,22253.0,0.898741]
[1674249591278,0.19487292,22260.0,22254.0,0.45]
[1674249591543,0.00985049,22260.0,22255.0,0.898645]
[1674249592321,0.00985049,22260.0,22256.0,0.15]
[1674249592568,0.00985049,22260.0,22257.0,0.898586]
[1674249593604,0.00985049,22260.0,22257.0,0.449294]
[1674249593862,0.314559,22259.0,22257.0,0.449294]
[1674249594175,0.00985049,22260.0,22257.0,0.449294]
[1674249594613,0.323322,22259.0,22257.0,0.449294]
[1674249595382,0.323322,22259.0,22255.0,0.449321]
[1674249595635,0.18502243,22259.0,22255.0,0.449321]
[1674249595888,0.00985049,22260.0,22255.0,0.449321]
[1674249596151,0.00985049,22260.0,22256.0,0.162578]
[1674249596437,0.00985049,22260.0,22257.0,1.347876]
[1674249596737,0.00985049,22260.0,22258.0,0.162574]
[1674249596999,0.00985049,22260.0,22259.0,0.449256]
[1674249597761,0.00985049,22260.0,22259.0,0.461826]
[1674249598048,0.00985049,22260.0,22259.0,0.611826]
[1674249598302,0.00985049,22260.0,22259.0,0.461826]
[1674249598840,0.00985049,22260.0,22259.0,0.449256]
[1674249600727,0.00985049,22260.0,22258.0,0.898532]
[1674249602422,0.00985049,22260.0,22258.0,0.68585846]
[1674249602922,0.00985049,22260.0,22259.0,0.064049]
[1674249603439,0.00951749,22260.0,22259.0,0.064049]
[1674249603722,0.00951749,22260.0,22259.0,0.05148]
[1674249604223,0.00951749,22260.0,22258.0,0.28545617]
[1674249604991,0.00951749,22260.0,22259.0,0.15]
[1674249605250,0.00951749,22260.0,22259.0,0.462569]
[1674249605497,0.00951749,22260.0,22259.0,0.162569]
[1674249606008,0.00951749,22260.0,22259.0,0.462569]
[1674249606268,0.00951749,22260.0,22259.0,0.162569]
[1674249606540,0.00951749,22260.0,22259.0,0.064049]
[1674249606809,0.00951749,22260.0,22259.0,0.05148]
[1674249607310,0.00951749,22260.0,22257.0,0.449287]
[1674249607834,0.00951749,22260.0,22258.0,0.15]
[1674249608092,0.00951749,22260.0,22259.0,0.513305]
[1674249609122,0.00951749,22260.0,22259.0,0.461825]
[1674249609382,0.20595749,22260.0,22253.0,0.619723]
[1674249609690,0.49419643,22259.0,22253.0,0.619723]
[1674249609914,0.15951749,22260.0,22253.0,0.619723]
[1674249609915,0.50832643,22258.0,22253.0,0.619723]
[1674249610212,0.18502243,22257.0,22253.0,0.619723]
[1674249610429,0.18502243,22256.0,22251.0,0.1124]
[1674249610698,0.51664043,22255.0,22250.0,0.449429]
[1674249610994,0.18502243,22254.0,22250.0,0.449429]
[1674249612524,0.15,22256.0,22250.0,0.449429]
[1674249612776,0.33502243,22256.0,22250.0,0.449429]
[1674249613034,0.305102,22255.0,22250.0,0.449429]
[1674249613286,0.321498,22254.0,22250.0,0.449429]
[1674249613547,0.18502243,22254.0,22250.0,0.449429]
[1674249613805,0.15,22256.0,22250.0,0.449429]
[1674249614076,0.33502243,22256.0,22250.0,0.449429]
[1674249615113,0.323525,22255.0,22250.0,0.449429]
[1674249615372,0.18502243,22255.0,22250.0,0.449429]
[1674249615667,0.18502243,22255.0,22251.0,0.3]
[1674249615939,0.15951749,22260.0,22252.0,0.461971]
[1674249616382,0.34453992,22260.0,22252.0,0.44938]
[1674249616657,0.113,22258.0,22252.0,0.44938]
[1674249616900,0.330927,22257.0,22252.0,0.44938]
[1674249617163,0.18502243,22257.0,22252.0,0.44938]
[1674249618459,0.336938,22256.0,22252.0,0.44938]
[1674249618723,0.18502243,22256.0,22252.0,0.44938]
[1674249618962,0.263,22258.0,22252.0,0.44938]
[1674249619231,0.51658418,22258.0,22252.0,0.44938]
[1674249619495,0.328254,22257.0,22252.0,0.44938]
[1674249619740,0.298343,22256.0,22252.0,0.44938]
[1674249620022,0.312489,22255.0,22252.0,0.44938]
[1674249620251,0.323023,22254.0,22252.0,0.44938]
[1674249620516,0.00030699,22256.0,22251.0,0.449399]
[1674249620762,0.18532942,22256.0,22251.0,0.449399]
[1674249621311,0.18502243,22256.0,22251.0,0.449399]
[1674249621764,0.15951749,22260.0,22252.0,0.3]
[1674249622018,0.34453992,22260.0,22254.0,0.449355]
[1674249622265,0.00030631,22255.0,22254.0,0.449355]
[1674249622514,0.00030631,22255.0,22254.0,0.749355]
[1674249622782,0.00024631,22255.0,22254.0,0.911937]
[1674249623288,0.00951749,22260.0,22254.0,1.136737]
[1674249623548,0.00951749,22260.0,22256.0,0.1131]
[1674249623875,0.00951749,22260.0,22257.0,0.911161]
[1674249624065,0.00951749,22260.0,22257.0,0.898584]
[1674249624331,0.00951749,22260.0,22258.0,0.012573]
[1674249624605,0.00951749,22260.0,22256.0,0.449314]
[1674249624865,0.19453992,22260.0,22256.0,0.898631]
[1674249625400,0.00951749,22260.0,22256.0,0.898631]
[1674249626218,0.0003053,22259.0,22257.0,0.3]
[1674249626696,0.0003053,22259.0,22258.0,1.024223]
[1674249626964,0.0003053,22259.0,22258.0,0.911123]
[1674249627219,0.00951749,22260.0,22258.0,0.911123]
[1674249627472,0.00951749,22260.0,22258.0,0.898552]
[1674249627737,0.00951749,22260.0,22259.0,0.21405]
[1674249628771,0.00951749,22260.0,22259.0,0.51405]
[1674249629046,0.00951749,22260.0,22259.0,0.21405]
[1674249629302,0.14747708,22265.0,22259.0,0.21405]
[1674249629581,0.2631,22266.0,22260.0,0.89844]
[1674249630359,0.44812243,22266.0,22260.0,0.89844]
[1674249631133,0.305124,22265.0,22260.0,0.89844]
[1674249631395,0.326386,22264.0,22260.0,0.89844]
[1674249631823,0.298688,22263.0,22260.0,0.23569656]
[1674249632105,0.482074,22262.0,22260.0,0.23569656]
[1674249632377,0.31845,22261.0,22260.0,0.23569656]
[1674249632636,0.15,22262.0,22260.0,0.23569656]
[1674249633169,0.15,22262.0,22258.0,0.449276]
[1674249633453,0.50085943,22261.0,22257.0,0.449278]
[1674249633717,0.50346943,22260.0,22257.0,0.449278]
[1674249633972,0.316724,22259.0,22257.0,0.449278]
[1674249634232,0.18502243,22260.0,22257.0,0.449278]
[1674249634487,0.15,22262.0,22257.0,0.449284]
[1674249635010,0.329741,22261.0,22257.0,0.449284]
[1674249635289,0.310995,22260.0,22257.0,0.449284]
[1674249635543,0.33502243,22262.0,22257.0,0.449284]
[1674249636330,0.320698,22261.0,22256.0,0.449317]